bitfinex/quotes_BTCUSD_20250526
["timestamp","ask_amount","ask_price","bid_price","bid_amount"]
[1748298698004,0.22216795,109550.0,109540.0,2.17011324]
[1748298698521,0.22316795,109550.0,109540.0,2.13773424]
[1748298698725,0.22316795,109550.0,109540.0,2.05711924]
[1748298698944,0.29445802,109550.0,109540.0,1.21245688]
[1748298699195,0.29445802,109550.0,109540.0,1.16014488]
[1748298699413,0.29445802,109550.0,109540.0,1.14891488]
[1748298699550,0.29445802,109550.0,109540.0,0.52007488]
[1748298699785,0.30955802,109550.0,109540.0,1.03064488]
[1748298700459,0.30955802,109550.0,109540.0,0.75688488]
[1748298700661,0.30955802,109550.0,109540.0,0.98837188]
[1748298700867,0.30955802,109550.0,109540.0,1.37520788]
[1748298701526,0.30955802,109550.0,109540.0,1.26213188]
[1748298701662,0.32575802,109550.0,109540.0,1.26213188]
[1748298702092,0.29445802,109550.0,109540.0,1.37426788]
[1748298702321,0.21404071,109550.0,109540.0,1.59667849]
[1748298702553,0.20491263,109550.0,109540.0,1.56597866]
[1748298702771,0.18665622,109550.0,109540.0,1.37426788]
[1748298703377,0.18665622,109550.0,109540.0,0.74542788]
[1748298703607,0.30750178,109550.0,109540.0,1.26209188]
[1748298712276,0.29130178,109550.0,109540.0,1.26209188]
[1748298712491,0.27620178,109550.0,109540.0,1.86091788]
[1748298712727,0.27620178,109550.0,109540.0,1.87711788]
[1748298713386,0.27620178,109550.0,109540.0,1.89231788]
[1748298714085,0.27620178,109550.0,109540.0,1.90315006]
[1748298715818,0.27620178,109550.0,109540.0,2.29731006]
[1748298716265,0.27620178,109550.0,109540.0,2.22343506]
[1748298716508,0.27620178,109550.0,109540.0,1.87510806]
[1748298717160,0.27620178,109550.0,109540.0,1.66708406]
[1748298717594,0.27620178,109550.0,109540.0,1.91457806]
[1748298718605,0.27620178,109550.0,109540.0,1.94577806]
[1748298719483,0.27620178,109550.0,109540.0,2.12835976]
[1748298719695,0.27620178,109550.0,109540.0,2.14661767]
[1748298720135,0.0223471,109550.0,109540.0,2.4581668]
[1748298721187,0.00309119,109550.0,109540.0,2.46183441]
[1748298721393,0.01221869,109550.0,109540.0,2.46283441]
[1748298721823,0.02034635,109550.0,109540.0,2.46283441]
[1748298722447,0.01121869,109550.0,109540.0,2.44833462]
[1748298722681,0.02034635,109550.0,109540.0,2.44833462]
[1748298722918,0.02034635,109550.0,109540.0,2.44733462]
[1748298723206,0.02034635,109550.0,109540.0,2.45133462]
[1748298724241,0.02034635,109550.0,109540.0,2.46491659]
[1748298725285,0.01121869,109550.0,109540.0,2.46491659]
[1748298725688,0.02034635,109550.0,109540.0,2.46491659]
[1748298730316,0.0386021,109550.0,109540.0,2.46491659]
[1748298732575,0.00209119,109550.0,109540.0,2.46491659]
[1748298732800,0.21191078,109570.0,109560.0,0.53167578]
[1748298733008,0.20328392,109570.0,109560.0,2.57743576]
[1748298733837,0.20328392,109570.0,109560.0,2.75998413]
[1748298734375,0.20428392,109570.0,109560.0,2.75998413]
[1748298734623,0.20428392,109570.0,109560.0,2.76911154]
[1748298734828,0.20428392,109570.0,109560.0,2.78906694]
[1748298735272,0.20428392,109570.0,109560.0,2.77711594]
[1748298735524,0.22353666,109570.0,109560.0,2.82626993]
[1748298735772,0.2144105,109570.0,109560.0,2.81714302]
[1748298736878,0.2144105,109570.0,109560.0,2.80184302]
[1748298737425,0.20528409,109570.0,109560.0,2.79271594]
[1748298737634,0.19615759,109570.0,109560.0,2.44238194]
[1748298737924,0.21873101,109570.0,109560.0,2.08223083]
[1748298738123,0.21873101,109570.0,109560.0,1.97984083]
[1748298738322,0.21873101,109570.0,109560.0,2.17151661]
[1748298738529,0.21873101,109570.0,109560.0,1.97984083]
[1748298738735,0.21873101,109570.0,109560.0,2.1623892]
[1748298739401,0.21873101,109570.0,109560.0,1.97984083]
[1748298740022,0.21873101,109570.0,109560.0,1.95662083]
[1748298743243,0.21873101,109570.0,109560.0,2.35070083]
[1748298743964,0.30827657,109570.0,109560.0,1.95901183]
[1748298744179,0.30827657,109570.0,109560.0,1.68533183]
[1748298744405,0.30827657,109570.0,109560.0,1.09874807]
[1748298744617,0.30827657,109570.0,109560.0,0.01082807]
[1748298744828,0.30827657,109570.0,109560.0,0.36466807]
[1748298744829,0.34436566,109570.0,109560.0,0.36466807]
[1748298745040,0.34436566,109570.0,109560.0,0.62752]
[1748298745254,0.30827657,109570.0,109560.0,0.62752]
[1748298745895,0.30827657,109570.0,109550.0,0.69819995]
[1748298745896,0.22367562,109560.0,109550.0,0.40490807]
[1748298746101,0.31322118,109560.0,109550.0,1.03242807]
[1748298746309,0.31322118,109560.0,109550.0,1.31489188]
[1748298746927,0.31322118,109560.0,109550.0,1.31589188]
[1748298747332,0.31322118,109560.0,109550.0,1.0226]
[1748298747749,0.32220689,109560.0,109550.0,1.0226]
[1748298749280,0.31322118,109560.0,109550.0,1.31589188]
[1748298757678,0.31322118,109560.0,109550.0,1.02264]
[1748298758794,0.31322118,109560.0,109550.0,1.31593188]
[1748298765733,0.31322118,109560.0,109550.0,1.02264]
[1748298765975,0.31322118,109560.0,109550.0,1.31593188]
[1748298766850,0.31322118,109560.0,109550.0,1.02264]
[1748298767083,0.31322118,109560.0,109550.0,1.31593188]
[1748298773743,0.31322118,109560.0,109550.0,0.92185188]
[1748298778826,0.29722118,109560.0,109550.0,0.92185188]
[1748298780603,0.31352118,109560.0,109550.0,0.92185188]
[1748298782180,0.31352118,109560.0,109550.0,0.001]
[1748298782388,0.36426921,109560.0,109550.0,0.35436]
[1748298782616,0.36426921,109560.0,109550.0,0.62808]
[1748298784409,0.31352118,109560.0,109550.0,0.62808]
[1748298784767,0.31352118,109560.0,109550.0,0.62812]
[1748298786682,0.62135391,109560.0,109550.0,0.001]
[1748298787138,0.94204279,109560.0,109550.0,0.001]
[1748298787370,0.73827242,109560.0,109550.0,0.001]
[1748298788253,0.20623396,109550.0,109540.0,0.39416]
[1748298788494,0.32587952,109550.0,109540.0,0.39416]
[1748298789472,0.33922377,109550.0,109540.0,0.39416]
[1748298789669,0.34022377,109550.0,109540.0,0.39416]
[1748298789880,0.42974528,109550.0,109540.0,0.39416]
[1748298790099,0.34022377,109550.0,109540.0,0.39416]
[1748298790930,0.34122377,109550.0,109540.0,0.39416]
[1748298792739,0.40444825,109550.0,109540.0,0.39416]
[1748298792951,0.43184725,109550.0,109540.0,0.39416]
[1748298793687,0.37656315,109550.0,109540.0,0.39416]
[1748298797521,0.19171061,109540.0,109530.0,0.92041188]
[1748298797737,0.28125617,109540.0,109530.0,0.92041188]
[1748298798060,0.28125617,109540.0,109530.0,0.93581188]
[1748298798722,0.28125617,109540.0,109530.0,0.92041188]
[1748298798963,0.28125617,109540.0,109530.0,0.92141188]
[1748298809765,0.28125617,109540.0,109530.0,0.64769188]
[1748298809988,0.65847997,109540.0,109530.0,0.3544]
[1748298810233,0.67302082,109540.0,109530.0,0.001]
[1748298810444,0.97422282,109540.0,109530.0,0.001]
[1748298810667,1.04711244,109540.0,109530.0,0.001]
[1748298810882,1.34711244,109540.0,109530.0,0.001]
[1748298811552,0.23806897,109530.0,109520.0,0.002]
[1748298811766,0.71042792,109530.0,109520.0,0.002]
[1748298812821,0.72438401,109530.0,109520.0,0.00309119]
[1748298814598,1.71767589,109530.0,109520.0,0.00309119]
[1748298814801,2.01705002,109530.0,109520.0,0.00309119]
[1748298815044,0.55628647,109520.0,109510.0,0.02]
[1748298815245,1.90772542,109520.0,109510.0,0.02]
[1748298816059,2.24328285,109520.0,109510.0,0.02]
[1748298816292,2.5110173,109520.0,109510.0,0.02]
[1748298816509,2.32315807,109520.0,109510.0,0.0044]
[1748298817765,2.34172025,109520.0,109510.0,0.0044]
[1748298818179,2.34572025,109520.0,109510.0,0.0044]
[1748298818384,0.29910398,109510.0,109500.0,0.002]
[1748298818593,1.33859481,109510.0,109500.0,0.002]
[1748298819405,1.62863481,109510.0,109500.0,0.002]
[1748298819837,1.63063481,109510.0,109500.0,0.002]
[1748298820298,1.63429081,109510.0,109500.0,0.002]
[1748298820516,1.63529081,109510.0,109500.0,0.002]
[1748298820945,1.62529081,109510.0,109500.0,0.002]
[1748298821159,1.62429081,109510.0,109500.0,0.002]
[1748298821614,1.63929081,109510.0,109500.0,0.004]
[1748298821857,1.64129081,109510.0,109500.0,0.005]
[1748298822202,1.63929081,109510.0,109500.0,0.004]
[1748298822428,1.65429081,109510.0,109500.0,0.005]
[1748298824736,1.68512597,109510.0,109500.0,0.005]
[1748298825405,0.55547184,109490.0,109480.0,0.002]
[1748298825615,1.41367079,109490.0,109480.0,0.002]
[1748298826042,1.44108979,109490.0,109480.0,0.002]
[1748298827409,1.44508979,109490.0,109480.0,0.002]
[1748298827821,1.44808979,109490.0,109480.0,0.003]
[1748298830273,1.72204979,109490.0,109480.0,0.003]
[1748298830939,1.78493299,109490.0,109480.0,0.003]
[1748298837907,0.7423196,109490.0,109480.0,0.0187]
[1748298838341,0.7423196,109490.0,109480.0,0.0142537]
[1748298838763,0.2009677,109470.0,109460.0,0.31119188]
[1748298838965,0.29051326,109470.0,109460.0,0.0179]
[1748298839120,0.33783428,109470.0,109460.0,0.0179]
[1748298840032,0.33988413,109470.0,109460.0,0.0179]
[1748298841307,0.29256311,109470.0,109460.0,0.0329]
[1748298842459,0.30637218,109470.0,109460.0,0.01149261]
[1748298844245,0.31540134,109470.0,109460.0,0.30478449]
[1748298845543,0.31540134,109470.0,109460.0,0.32048449]
[1748298845758,0.36795277,109470.0,109460.0,0.32048449]
[1748298850392,0.31540134,109470.0,109460.0,0.32048449]
[1748298852749,0.30159227,109470.0,109460.0,0.32048449]
[1748298855606,0.30159227,109470.0,109460.0,0.02719261]
[1748298855809,0.30159227,109470.0,109460.0,0.30478449]
[1748298860380,0.36452331,109470.0,109460.0,0.30478449]
[1748298860620,0.42198694,109470.0,109460.0,0.30478449]
[1748298863256,0.3899389,109470.0,109460.0,0.30478449]
[1748298865485,0.4059389,109470.0,109460.0,0.29329188]
[1748298865608,0.4059389,109470.0,109460.0,0.30979188]
[1748298866031,0.4059389,109470.0,109460.0,0.31012201]
[1748298866869,0.4059389,109470.0,109460.0,0.29362201]
[1748298867711,0.4194159,109470.0,109460.0,0.29362201]
[1748298869309,0.4194159,109470.0,109460.0,0.30892201]
[1748298869759,0.3782958,109470.0,109460.0,0.60254402]
[1748298870951,0.3782958,109470.0,109460.0,0.61804402]
[1748298871570,0.3782958,109470.0,109460.0,0.32442201]
[1748298871948,0.3782958,109470.0,109460.0,0.32439728]
[1748298872205,0.3782958,109470.0,109460.0,0.30889728]
[1748298875509,0.3782958,109470.0,109460.0,0.32439728]
[1748298875978,0.3782958,109470.0,109460.0,0.30889728]
[1748298877006,0.39554363,109470.0,109460.0,0.30889728]
[1748298882165,0.39554363,109470.0,109460.0,0.58285728]
[1748298883877,0.3782958,109470.0,109460.0,0.58285728]
[1748298884916,0.36926664,109470.0,109460.0,0.58285728]
[1748298886575,0.36926664,109470.0,109460.0,0.28926]
[1748298886833,0.36926664,109470.0,109460.0,0.58285728]
[1748298890119,0.36926664,109470.0,109460.0,0.28926]
[1748298890325,0.36926664,109470.0,109460.0,0.58285728]
[1748298893283,0.4287246,109470.0,109460.0,0.58285728]
[1748298894016,0.4287246,109470.0,109460.0,0.87643966]
[1748298894225,0.36926664,109470.0,109460.0,0.87643966]
[1748298894600,0.35578964,109470.0,109460.0,0.87643966]
[1748298896250,0.35578964,109470.0,109460.0,1.24465966]
[1748298898483,0.35578964,109470.0,109460.0,1.25548773]
[1748298899389,0.35578964,109470.0,109460.0,1.24465966]
[1748298900013,0.35578964,109470.0,109460.0,1.22855966]
[1748298900869,0.4096383,109470.0,109460.0,0.95459966]
[1748298901082,0.4096383,109470.0,109460.0,1.22855966]
[1748298901502,0.4261383,109470.0,109460.0,1.22855966]
[1748298901708,0.37228964,109470.0,109460.0,1.22855966]
[1748298902430,0.30906311,109470.0,109460.0,1.22855966]
[1748298902592,0.29256311,109470.0,109460.0,1.22855966]
[1748298903770,0.29256311,109470.0,109460.0,0.91966983]
[1748298903980,0.35982347,109470.0,109460.0,0.91966983]
[1748298904193,0.35982347,109470.0,109460.0,0.64570983]
[1748298904373,0.35982347,109470.0,109460.0,0.91966983]
[1748298905646,0.30906311,109470.0,109460.0,0.64570983]
[1748298905926,0.32486311,109470.0,109460.0,0.91966983]
[1748298906129,0.33872636,109470.0,109460.0,0.91966983]
[1748298906365,0.32292636,109470.0,109460.0,0.91966983]
[1748298906583,0.32292636,109470.0,109460.0,1.21325966]
[1748298909746,0.20815073,109460.0,109450.0,0.01082807]
[1748298909962,0.32773714,109460.0,109450.0,0.01082807]
[1748298910191,0.32773714,109460.0,109450.0,0.01935221]
[1748298910817,0.32773714,109460.0,109450.0,0.00852414]
[1748298911024,0.41725865,109460.0,109450.0,0.00852414]
[1748298911241,0.19186826,109450.0,109440.0,0.002]
[1748298911482,0.32775467,109450.0,109440.0,0.002]
[1748298911691,0.32775467,109450.0,109440.0,0.29558983]
[1748298911897,0.35517867,109450.0,109440.0,0.29558983]
[1748298912112,0.35517867,109450.0,109440.0,0.002]
[1748298912485,0.43330892,109450.0,109440.0,0.002]
[1748298912692,0.43330892,109450.0,109440.0,0.003]
[1748298913078,0.35617867,109450.0,109440.0,0.006]
[1748298916177,0.34067867,109450.0,109440.0,0.006]
[1748298916595,0.34067867,109450.0,109440.0,0.29975297]
[1748298918218,0.34067867,109450.0,109440.0,0.006]
[1748298918422,0.32437867,109450.0,109440.0,0.0224]
[1748298918866,0.34077867,109450.0,109440.0,0.006]
[1748298919009,0.43030018,109450.0,109440.0,0.006]
[1748298922908,0.34077867,109450.0,109440.0,0.006]
[1748298923618,0.35697867,109450.0,109440.0,0.006]
[1748298931985,0.35697867,109450.0,109440.0,0.29974634]
[1748298933191,0.35697867,109450.0,109440.0,0.006]
[1748298933339,0.35697867,109450.0,109440.0,0.29974634]
[1748298933544,0.44650018,109450.0,109440.0,0.29974634]
[1748298934112,0.35697867,109450.0,109440.0,0.29974634]
[1748298934519,0.65072501,109450.0,109440.0,0.006]
[1748298937087,0.63452501,109450.0,109440.0,0.006]
[1748298937720,0.65062501,109450.0,109440.0,0.006]
[1748298939072,0.65062501,109450.0,109440.0,0.01451827]
[1748298939721,0.6725565,109450.0,109440.0,0.01451827]
[1748298939923,0.6725565,109450.0,109440.0,0.01308536]
[1748298941069,0.6725565,109450.0,109440.0,0.00456709]
[1748298943427,1.54034284,109450.0,109440.0,0.00456709]
[1748298943658,1.88034284,109450.0,109440.0,0.00456709]
[1748298943883,1.60599563,109450.0,109440.0,0.00456709]
[1748298944125,0.21558201,109430.0,109420.0,0.00206]
[1748298944361,0.69523527,109430.0,109420.0,0.00206]
[1748298944805,0.99670827,109430.0,109420.0,0.00206]
[1748298945442,0.99670827,109430.0,109420.0,0.00255984]
[1748298945867,1.59045461,109430.0,109420.0,0.00255984]
[1748298946254,1.29770827,109430.0,109420.0,0.00455984]
[1748298946916,1.29770827,109430.0,109420.0,0.00255984]
[1748298947569,1.00296193,109430.0,109420.0,0.00255984]
[1748298947774,1.29670827,109430.0,109420.0,0.00255984]
[1748298947989,0.21560056,109420.0,109410.0,0.0165812]
[1748298948202,0.72122134,109420.0,109410.0,0.0165812]
[1748298948408,0.42726763,109420.0,109410.0,0.0165812]
[1748298948827,0.72122134,109420.0,109410.0,0.0165812]
[1748298949635,0.72322134,109420.0,109410.0,0.0175812]
[1748298949836,0.72522134,109420.0,109410.0,0.0175812]
[1748298950668,0.75265634,109420.0,109410.0,0.0175812]
[1748298951661,0.22267925,109410.0,109400.0,0.002]
[1748298951876,0.41794632,109410.0,109400.0,0.002]
[1748298952500,0.43161804,109410.0,109400.0,0.002]
[1748298952973,0.45905304,109410.0,109400.0,0.002]
[1748298953202,0.75400675,109410.0,109400.0,0.003]
[1748298953560,0.75500675,109410.0,109400.0,0.003]
[1748298953776,0.46105304,109410.0,109400.0,0.003]
[1748298955675,0.47004558,109410.0,109400.0,0.003]
[1748298957122,0.45384558,109410.0,109400.0,0.003]
[1748298957583,0.34812407,109410.0,109400.0,0.31255371]
[1748298957793,0.33358322,109410.0,109400.0,0.32825371]
[1748298958854,0.33358322,109410.0,109400.0,0.31255371]
[1748298960383,0.33358322,109410.0,109400.0,0.32795371]
[1748298960611,0.33358322,109410.0,109400.0,0.67931371]
[1748298960872,0.36100697,109410.0,109400.0,0.67931371]
[1748298961503,0.36100697,109410.0,109400.0,0.95343371]
[1748298962247,0.29715568,109410.0,109400.0,0.95343371]
[1748298964535,0.29715568,109410.0,109400.0,0.96193372]
[1748298964944,0.29715568,109410.0,109400.0,0.68781372]
[1748298965159,0.29715568,109410.0,109400.0,0.96193372]
[1748298967709,0.29685748,109410.0,109400.0,0.96193372]
[1748298968698,0.29685748,109410.0,109400.0,0.39386001]
[1748298968917,0.29685748,109410.0,109400.0,0.65258001]
[1748298970742,0.31185748,109410.0,109400.0,0.36286001]
[1748298970949,0.3622405,109410.0,109400.0,0.63698001]
[1748298971152,0.3896735,109410.0,109400.0,0.63698001]
[1748298971775,0.3896735,109410.0,109400.0,0.65298001]
[1748298974972,0.32429048,109410.0,109400.0,0.65298001]
[1748298982568,0.32429048,109410.0,109400.0,0.94693372]
[1748298983833,0.32429048,109410.0,109400.0,0.65298001]
[1748298984689,0.32429048,109410.0,109400.0,0.94693372]
[1748298984897,0.32429048,109410.0,109400.0,0.96323372]
[1748298985105,0.29685748,109410.0,109400.0,0.96323372]
[1748298988887,0.29685748,109410.0,109400.0,2.01462872]
[1748298988888,0.28318576,109410.0,109400.0,2.01462872]
[1748298989088,0.28318576,109410.0,109400.0,2.00433072]
[1748298989292,0.28318576,109410.0,109400.0,1.86113071]
[1748298989922,0.28318576,109410.0,109400.0,1.87556814]
[1748298990831,0.28318576,109410.0,109400.0,1.88648049]
[1748298992996,0.28318576,109410.0,109400.0,1.71010649]
[1748298994677,0.28318576,109410.0,109400.0,1.69566906]
[1748298995747,0.29232544,109410.0,109400.0,2.19071956]
[1748298996009,0.29232544,109410.0,109400.0,1.98962277]
[1748298997840,0.29232544,109410.0,109400.0,1.42154906]
[1748298998038,0.29232544,109410.0,109400.0,1.40932106]
[1748298999152,0.29232544,109410.0,109400.0,1.13524106]
[1748298999373,0.29232544,109410.0,109400.0,1.40932106]
[1748298999955,0.29232544,109410.0,109400.0,1.30560606]
[1748299000611,0.29232544,109410.0,109400.0,1.40878606]
[1748299001031,0.29232544,109410.0,109400.0,1.30560606]
[1748299001402,0.29232544,109410.0,109400.0,1.01522606]
[1748299002006,0.30892544,109410.0,109400.0,1.27330606]
[1748299002419,0.30892544,109410.0,109400.0,1.28950606]
[1748299003428,0.30892544,109410.0,109400.0,1.27330606]
[1748299005260,0.30892544,109410.0,109400.0,1.28950606]
[1748299006231,0.30892544,109410.0,109400.0,1.27330606]
[1748299007378,0.29232544,109410.0,109400.0,1.28870606]
[1748299010167,0.29232544,109410.0,109400.0,1.01462606]
[1748299010370,0.29232544,109410.0,109400.0,1.28870606]
[1748299010976,0.29232544,109410.0,109400.0,1.29722728]
[1748299011875,0.29232544,109410.0,109400.0,1.28870606]
[1748299012129,0.30872544,109410.0,109400.0,0.97935235]
[1748299012394,0.30872544,109410.0,109400.0,1.27330606]
[1748299015066,0.30872544,109410.0,109400.0,0.70527235]
[1748299015280,0.32442544,109410.0,109400.0,0.63935235]
[1748299015463,0.32442544,109410.0,109400.0,0.64788232]
[1748299015695,0.33829181,109410.0,109400.0,0.64788232]
[1748299016087,0.42781332,109410.0,109400.0,0.64788232]
[1748299016281,0.42781332,109410.0,109400.0,0.63696997]
[1748299016822,0.42781332,109410.0,109400.0,0.36288997]
[1748299017024,0.42781332,109410.0,109400.0,0.63696997]
[1748299017234,0.42781332,109410.0,109400.0,0.63696887]
[1748299018264,0.42781332,109410.0,109400.0,0.63696791]
[1748299019168,0.33829181,109410.0,109400.0,0.63696791]
[1748299020857,0.33829181,109410.0,109400.0,0.36288791]
[1748299021088,0.33829181,109410.0,109400.0,0.63700791]
[1748299022956,0.33829181,109410.0,109400.0,0.36288791]
[1748299024673,0.35283266,109410.0,109400.0,0.36288791]
[1748299024894,0.43901172,109410.0,109400.0,0.01152791]
[1748299025562,0.46644672,109410.0,109400.0,0.01152791]
[1748299027758,0.76040043,109410.0,109400.0,0.01152791]
[1748299028170,0.76040043,109410.0,109400.0,0.003]
[1748299028171,0.46644672,109410.0,109400.0,0.003]
[1748299029143,0.52958055,109410.0,109400.0,0.003]
[1748299032310,0.82353426,109410.0,109400.0,0.003]
[1748299033373,1.09765426,109410.0,109400.0,0.003]
[1748299034919,1.39160797,109410.0,109400.0,0.003]
[1748299035141,1.09765426,109410.0,109400.0,0.003]
[1748299035733,0.80370055,109410.0,109400.0,0.003]
[1748299035916,1.09665426,109410.0,109400.0,0.003]
[1748299036371,1.09869426,109410.0,109400.0,0.002]
[1748299036683,1.10169426,109410.0,109400.0,0.003]
[1748299038100,1.06947194,109410.0,109400.0,0.003]
[1748299039107,0.23155552,109390.0,109380.0,0.002]
[1748299039312,0.32110108,109390.0,109380.0,0.002]
[1748299039632,0.32110108,109390.0,109380.0,0.01052301]
[1748299040291,0.32210108,109390.0,109380.0,0.0116142]
[1748299042019,0.40632341,109390.0,109380.0,0.0116142]
[1748299042541,0.32210108,109390.0,109380.0,0.0116142]
[1748299043957,0.30620108,109390.0,109380.0,0.0267142]
[1748299044800,0.61535479,109390.0,109380.0,0.0116142]
[1748299045013,0.63175479,109390.0,109380.0,0.0116142]
[1748299045225,0.45476159,109390.0,109380.0,0.0116142]
[1748299045691,0.43836159,109390.0,109380.0,0.0116142]
[1748299047171,0.42316159,109390.0,109380.0,0.0281142]
[1748299047567,0.33364008,109390.0,109380.0,0.0281142]
[1748299048688,0.30620108,109390.0,109380.0,0.0281142]
[1748299049409,0.32180108,109390.0,109380.0,0.0116142]
[1748299051006,0.32180108,109390.0,109380.0,0.0279142]
[1748299051226,0.41132259,109390.0,109380.0,0.0279142]
[1748299051668,0.41132259,109390.0,109380.0,0.0116142]
[1748299055938,0.41132259,109390.0,109380.0,0.0266142]
[1748299056440,0.41132259,109390.0,109380.0,0.0116142]
[1748299062202,0.39572259,109390.0,109380.0,0.0281142]
[1748299064637,0.41232259,109390.0,109380.0,0.0116142]
[1748299065180,0.47549143,109390.0,109380.0,0.0116142]
[1748299068227,0.45889143,109390.0,109380.0,0.0266142]
[1748299068592,0.45889143,109390.0,109380.0,0.32065931]
[1748299070834,0.35482907,109390.0,109380.0,0.32065931]
[1748299073973,0.35482907,109390.0,109380.0,0.61470442]
[1748299074129,0.35482907,109390.0,109380.0,0.63060442]
[1748299074338,0.35482907,109390.0,109380.0,1.26464953]
[1748299074545,0.35482907,109390.0,109380.0,0.97060442]
[1748299074963,0.35482907,109390.0,109380.0,2.51177965]
[1748299075127,0.35482907,109390.0,109380.0,2.54627161]
[1748299075329,0.35482907,109390.0,109380.0,2.47459943]
[1748299075686,0.34568789,109390.0,109380.0,2.47459943]
[1748299076089,0.34568789,109390.0,109380.0,2.1801537]
[1748299076326,0.34568789,109390.0,109380.0,2.01929235]
[1748299076663,0.34533551,109390.0,109380.0,2.01929235]
[1748299076859,0.34533551,109390.0,109380.0,1.96742235]
[1748299077339,0.07330977,109390.0,109380.0,1.9857063]
[1748299077559,0.08245095,109390.0,109380.0,1.9857063]
[1748299077766,0.09159238,109390.0,109380.0,1.9857063]
[1748299078143,0.10073389,109390.0,109380.0,1.9857063]
[1748299078348,0.28356662,109390.0,109380.0,1.5585798]
[1748299078580,0.27342544,109390.0,109380.0,1.4743558]
[1748299078818,0.27442544,109390.0,109380.0,0.8886662]
[1748299079043,0.27442544,109390.0,109380.0,1.4773558]
[1748299079437,0.24351916,109390.0,109380.0,1.4773558]
[1748299079625,0.2112566,109390.0,109380.0,1.45907135]
[1748299079845,0.2112566,109390.0,109380.0,1.46821353]
[1748299080057,0.2112566,109390.0,109380.0,1.47735563]
[1748299080275,0.2112566,109390.0,109380.0,1.48649765]
[1748299080632,0.2112566,109390.0,109380.0,1.49563958]
[1748299081226,0.2112566,109390.0,109380.0,1.49563908]
[1748299082609,0.2112566,109390.0,109380.0,1.50652249]
[1748299083342,0.2112566,109390.0,109380.0,0.91883289]
[1748299083551,0.2112566,109390.0,109380.0,1.50652249]
[1748299083756,0.2112566,109390.0,109380.0,1.49738064]
[1748299083964,0.202115,109390.0,109380.0,1.50652249]
[1748299084392,0.02842354,109390.0,109380.0,1.50652249]
[1748299085421,0.2112556,109390.0,109380.0,1.50652249]
[1748299085898,0.22039711,109390.0,109380.0,1.50652249]
[1748299086105,0.03756505,109390.0,109380.0,1.50652249]
[1748299086323,0.21125618,109390.0,109380.0,1.27796363]
[1748299086542,0.202115,109390.0,109380.0,1.46995484]
[1748299086731,0.202115,109390.0,109380.0,1.47909719]
[1748299089498,0.202115,109390.0,109380.0,1.48823937]
[1748299089710,0.202115,109390.0,109380.0,1.4973813]
[1748299092363,0.202115,109390.0,109380.0,1.47909719]
[1748299092584,0.29166056,109390.0,109380.0,1.90116363]
[1748299092806,0.29166056,109390.0,109380.0,1.80718263]
[1748299093855,0.29166056,109390.0,109380.0,1.7650802]
[1748299094298,0.29166056,109390.0,109380.0,1.7466892]
[1748299095818,0.29166056,109390.0,109380.0,1.76112663]
[1748299096026,0.29166056,109390.0,109380.0,2.15580663]
[1748299099871,0.29166056,109390.0,109380.0,2.14492322]
[1748299104474,0.29166056,109390.0,109380.0,2.13048579]
[1748299104795,0.29166056,109390.0,109380.0,2.32933457]
[1748299105267,0.01014118,109390.0,109380.0,2.34761886]
[1748299105476,0.01014093,109390.0,109380.0,2.35676071]
[1748299105691,0.02842338,109390.0,109380.0,2.35676071]
[1748299106498,0.02842329,109390.0,109380.0,2.35676071]
[1748299107318,0.03756472,109390.0,109380.0,2.35676071]
[1748299107565,0.02842329,109390.0,109380.0,2.35676071]
[1748299107966,0.03756464,109390.0,109380.0,2.35676071]
[1748299108171,0.01928203,109390.0,109380.0,2.35676071]
[1748299108363,0.02842329,109390.0,109380.0,2.35676071]
[1748299108574,0.03756472,109390.0,109380.0,2.35676071]
[1748299109019,0.02842329,109390.0,109380.0,2.35676071]
[1748299109231,0.03756472,109390.0,109380.0,2.35676071]
[1748299109893,0.03756472,109390.0,109380.0,2.08264071]
[1748299110108,0.04670623,109390.0,109380.0,2.35676071]
[1748299112229,0.22953829,109390.0,109380.0,2.35676071]
[1748299112433,0.22953896,109390.0,109380.0,2.35676071]
[1748299113580,0.22953896,109390.0,109380.0,2.34761886]
[1748299113828,0.22039786,109390.0,109380.0,2.34761886]
[1748299114411,0.2112566,109390.0,109380.0,2.06435684]
[1748299114626,0.2112566,109390.0,109380.0,2.32243684]
[1748299114829,0.20211517,109390.0,109380.0,2.32243684]
[1748299115561,0.28251922,109390.0,109380.0,1.50728579]
[1748299115769,0.28251922,109390.0,109380.0,2.13044579]
[1748299117756,0.3620442,109390.0,109380.0,0.00509119]
[1748299117984,0.3620442,109390.0,109380.0,0.96781119]
[1748299118210,0.3620442,109390.0,109380.0,0.35369119]
[1748299118437,0.3620442,109390.0,109380.0,0.63635174]
[1748299120864,0.31391922,109390.0,109380.0,0.63635174]
[1748299121256,0.31391922,109390.0,109380.0,0.63639174]
[1748299121992,0.31391922,109390.0,109380.0,0.93023654]
[1748299122327,0.29851922,109390.0,109380.0,0.93023654]
[1748299127385,0.28251922,109390.0,109380.0,1.58018134]
[1748299127579,0.29166007,109390.0,109380.0,1.79741441]
[1748299127817,0.30080167,109390.0,109380.0,1.79741441]
[1748299128471,0.30080167,109390.0,109380.0,1.79980486]
[1748299128998,0.30080167,109390.0,109380.0,1.79980502]
[1748299129466,0.30080167,109390.0,109380.0,1.79066284]
[1748299129970,0.29166057,109390.0,109380.0,1.58257179]
[1748299130194,0.28251922,109390.0,109380.0,1.28872699]
[1748299130412,0.28251922,109390.0,109380.0,1.27262699]
[1748299131453,0.31341922,109390.0,109380.0,1.27266699]
[1748299136268,0.31341922,109390.0,109380.0,1.26173599]
[1748299139224,0.31341922,109390.0,109380.0,1.26169599]
[1748299139904,0.31341922,109390.0,109380.0,1.27021631]
[1748299146039,0.31341922,109390.0,109380.0,0.99609631]
[1748299146247,0.31341922,109390.0,109380.0,1.27021631]
[1748299149893,0.31341922,109390.0,109380.0,0.97637151]
[1748299150108,0.3630442,109390.0,109380.0,0.97593151]
[1748299151581,0.3630442,109390.0,109380.0,1.26977631]
[1748299152734,0.3630442,109390.0,109380.0,0.70181151]
[1748299152955,0.3630442,109390.0,109380.0,0.36181151]
[1748299153185,0.3630442,109390.0,109380.0,0.63597151]
[1748299156905,0.31341922,109390.0,109380.0,0.30745631]
[1748299157126,0.31341922,109390.0,109380.0,0.63597151]
[1748299160117,0.31341922,109390.0,109380.0,0.01361151]
[1748299160326,0.31341922,109390.0,109380.0,0.63601151]
[1748299161781,0.31341922,109390.0,109380.0,0.36185151]
[1748299161967,0.31341922,109390.0,109380.0,0.63601151]
[1748299167500,0.36627045,109390.0,109380.0,0.01361151]
[1748299167716,0.36627045,109390.0,109380.0,0.63601151]
[1748299168217,0.36627045,109390.0,109380.0,0.01361151]
[1748299168429,0.36627045,109390.0,109380.0,0.63601151]
[1748299169353,0.31341922,109390.0,109380.0,0.63601151]
[1748299171061,0.64924187,109390.0,109380.0,0.01361151]
[1748299171278,0.35539707,109390.0,109380.0,0.01361151]